bitfinex/quotes_SOLUSD_20240816
["timestamp","ask_amount","ask_price","bid_price","bid_amount"]
[1723782284857,26.62,142.29,142.26,7.0293]
[1723782285280,33.647,142.31,142.26,7.0293]
[1723782285680,33.647,142.31,142.27,7.4354238]
[1723782285859,33.647,142.31,142.27,7.0288]
[1723782286189,26.62,142.33,142.28,7.0283]
[1723782286377,33.6459,142.33,142.29,7.0278]
[1723782287181,6.39980906,142.34,142.3,7.0271]
[1723782287362,6.39980906,142.34,142.3,7.027]
[1723782287363,0.08960906,142.34,142.3,7.027]
[1723782287559,26.62,142.33,142.28,7.028]
[1723782287763,26.62,142.33,142.29,7.0277]
[1723782287984,33.646,142.33,142.28,7.0281]
[1723782288204,26.62,142.33,142.28,7.0281]
[1723782288495,26.62,142.33,142.29,7.0278]
[1723782289060,33.646,142.33,142.28,7.0283]
[1723782289363,33.646,142.33,142.29,7.0278]
[1723782289968,26.62,142.33,142.29,7.0278]
[1723782290368,26.62,142.33,142.3,7.0273]
[1723782292474,0.08960906,142.34,142.3,7.0273]
[1723782294664,7.11500906,142.34,142.29,40.2771]
[1723782294864,26.62,142.33,142.29,40.2771]
[1723782297894,26.62,142.33,142.3,7.027]
[1723782298274,0.08960906,142.34,142.3,7.027]
[1723782299592,0.08960906,142.34,142.31,7.0266]
[1723782302491,0.08960906,142.34,142.31,17.5665]
[1723782302701,0.08960906,142.34,142.31,24.5932]
[1723782303796,26.62,142.33,142.29,22.7084]
[1723782303995,33.646,142.33,142.29,22.7084]
[1723782305696,33.646,142.33,142.28,17.57]
[1723782305697,26.62,142.31,142.28,17.57]
[1723782306312,33.6459,142.33,142.28,17.97647369]
[1723782306482,26.62,142.33,142.29,7.0277]
[1723782306897,33.6459,142.33,142.29,7.0277]
[1723782307504,7.0283,142.29,142.25,32.9578]
[1723782307673,26.62,142.28,142.25,32.9578]
[1723782308380,26.62,142.28,142.2,20.0]
[1723782308381,7.0289,142.27,142.22,39.5173]
[1723782308589,26.62,142.26,142.22,33.4149]
[1723782308985,26.62,142.26,142.23,7.0308]
[1723782309380,26.62,142.28,142.24,7.0301]
[1723782310286,26.62,142.28,142.25,7.0297]
[1723782310886,26.62,142.28,142.24,17.5756]
[1723782311091,26.62,142.28,142.25,7.0297]
[1723782312911,17.65390906,142.34,142.25,20.0]
[1723782312912,0.08960906,142.34,142.25,20.0]
[1723782313145,26.62,142.33,142.28,17.5703]
[1723782313279,26.62,142.33,142.29,7.0275]
[1723782315119,33.646,142.33,142.29,7.0275]
[1723782315808,7.026,142.33,142.29,7.0275]
[1723782316316,33.646,142.33,142.29,7.0275]
[1723782316503,26.62,142.33,142.29,7.0275]
[1723782317514,0.08960906,142.34,142.3,17.5681]
[1723782317715,26.70960906,142.34,142.3,17.5681]
[1723782317933,0.08960906,142.34,142.32,17.5653]
[1723782318146,0.08960906,142.34,142.32,24.5916]
[1723782318821,0.08960906,142.34,142.3,7.0269]
[1723782319123,0.08960906,142.34,142.31,7.0268]
[1723782319420,0.08960906,142.34,142.32,7.0264]
[1723782319624,0.08960906,142.34,142.29,20.12549]
[1723782319925,0.08960906,142.34,142.33,42.2751]
[1723782320131,0.08960906,142.34,142.33,87.93038314]
[1723782320425,0.08960906,142.34,142.33,107.93028435]
[1723782320628,1.64811275,142.36,142.35,24.5872]
[1723782320849,1.64811275,142.36,142.35,69.83818]
[1723782323446,1.64811275,142.36,142.35,89.83818]
[1723782323753,1.64811275,142.36,142.35,110.24206599]
[1723782323911,1.64811275,142.36,142.35,110.36755599]
[1723782324442,1.64811275,142.36,142.35,109.96367]
[1723782326618,0.16489783,142.37,142.36,7.14989]
[1723782326814,1.38968174,142.38,142.37,69.08639]
[1723782327036,1.38968174,142.38,142.37,114.46286]
[1723782327340,1.38968174,142.38,142.37,114.86524451]
[1723782327944,1.38968174,142.38,142.37,94.33737]
[1723782328236,1.38968174,142.38,142.37,114.21188]
[1723782330930,1.38968174,142.38,142.37,107.87838]
[1723782332247,1.38968174,142.38,142.37,108.00387]
[1723782332449,1.38968174,142.38,142.37,107.87838]
[1723782335554,1.38968174,142.38,142.37,22.75289]
[1723782336255,1.38968174,142.38,142.37,7.14939]
[1723782336570,1.38968174,142.38,142.37,7.0239]
[1723782338252,1.38968174,142.38,142.37,52.27488]
[1723782339164,1.38968174,142.38,142.37,7.0239]
[1723782340151,1.38968174,142.38,142.35,17.5623]
[1723782340345,1.38968174,142.38,142.36,52.14979]
[1723782342657,1.38968174,142.38,142.36,52.0243]
[1723782342964,1.38968174,142.38,142.36,7.0243]
[1723782343545,1.38968174,142.38,142.35,17.5623]
[1723782343870,26.62,142.37,142.33,7.0258]
[1723782344278,1.38968174,142.38,142.34,7.0254]
[1723782346552,1.38968174,142.38,142.35,7.0247]
[1723782346752,1.38968174,142.38,142.34,24.5884]
[1723782347063,8.41308174,142.38,142.34,17.5631]
[1723782347871,8.41308174,142.38,142.34,24.5885]
[1723782348560,1.38968174,142.38,142.35,7.0249]
[1723782352279,1.38968174,142.38,142.34,24.5883]
[1723782352971,1.38968174,142.38,142.35,7.0247]
[1723782354180,1.38968174,142.38,142.34,17.5631]
[1723782355104,0.32964342,142.41,142.4,7.0224]
[1723782355397,0.32964342,142.41,142.4,52.27338]
[1723782355700,0.32964342,142.41,142.4,7.0224]
[1723782356210,0.32964342,142.41,142.4,52.27338]
[1723782358194,0.32964342,142.41,142.4,7.0224]
[1723782359030,0.32964342,142.41,142.39,17.5565]
[1723782359422,0.32964342,142.41,142.37,7.0238]
[1723782359990,0.32964342,142.41,142.38,7.0234]
[1723782360620,0.32964342,142.41,142.39,7.0229]
[1723782362308,0.32964342,142.41,142.38,7.0232]
[1723782363335,0.32964342,142.41,142.39,7.0227]
[1723782363942,0.32964342,142.41,142.38,24.5813]
[1723782364740,0.32964342,142.41,142.39,7.0228]
[1723782365797,0.32964342,142.41,142.38,17.558]
[1723782365998,0.32964342,142.41,142.38,24.5813]
[1723782367515,7.35174342,142.41,142.37,7.0238]
[1723782369344,0.32964342,142.41,142.37,7.0238]
[1723782369563,0.32964342,142.41,142.36,7.0242]
[1723782369564,7.35164342,142.41,142.36,7.0242]
[1723782371452,7.0225,142.4,142.35,54.1439]
[1723782371744,33.6428,142.4,142.35,24.5858]
[1723782371948,26.62,142.4,142.35,24.5858]
[1723782372108,33.6428,142.4,142.35,24.5858]
[1723782372309,33.6428,142.4,142.36,7.0242]
[1723782372546,26.62,142.4,142.36,7.0242]
[1723782373453,7.35164342,142.41,142.37,62.68429]
[1723782373454,0.32964342,142.41,142.37,62.68429]
[1723782373652,0.32964342,142.41,142.37,17.5588]
[1723782375160,7.35174342,142.41,142.37,24.5827]
[1723782377663,7.35174342,142.41,142.32,61.6309]
[1723782377664,0.32964342,142.41,142.32,61.6309]
[1723782377979,33.6426,142.4,142.35,7.0246]
[1723782379279,26.62,142.38,142.34,24.5878]
[1723782379486,33.6435,142.38,142.34,24.5878]
[1723782383395,33.6435,142.38,142.31,24.593]
[1723782383396,7.0249,142.35,142.31,24.593]
[1723782383598,26.62,142.34,142.28,16.317]
[1723782383801,26.62,142.34,142.29,7.0278]
[1723782383802,33.6455,142.34,142.29,7.0278]
[1723782384010,33.6455,142.34,142.3,7.0272]
[1723782384179,26.62,142.34,142.3,7.0272]
[1723782385402,33.6454,142.34,142.3,7.0272]
[1723782386194,33.6454,142.34,142.29,7.0277]
[1723782386409,26.62,142.32,142.28,17.5701]
[1723782386586,7.0269,142.31,142.27,27.0285]
[1723782386786,0.12549,142.33,142.27,20.0]
[1723782387092,7.0248,142.36,142.32,20.0]
[1723782387279,7.0248,142.36,142.32,27.0262]
[1723782387797,7.0239,142.38,142.33,7.0258]
[1723782387998,3.5237,142.4,142.35,7.0248]
[1723782387999,7.0225,142.4,142.35,7.0248]
[1723782388211,7.0229,142.39,142.35,7.0248]
[1723782388424,7.0226,142.4,142.35,7.0248]
[1723782388622,7.0226,142.4,142.36,0.40406008]
[1723782388997,7.0226,142.4,142.35,7.0248]
[1723782391121,7.0229,142.39,142.35,7.0248]
[1723782391717,7.0234,142.38,142.34,7.0253]
[1723782392318,33.6431,142.39,142.34,7.0253]
[1723782393115,0.12549,142.4,142.35,0.12549]
[1723782393299,0.32964342,142.41,142.38,7.0232]
[1723782393508,0.32964342,142.41,142.37,24.5831]
[1723782394129,0.32964342,142.41,142.38,7.0233]
[1723782394294,0.32964342,142.41,142.39,7.0228]
[1723782397517,0.32964342,142.41,142.37,24.70829]
[1723782398840,0.32964342,142.41,142.37,24.5828]
[1723782399756,0.32964342,142.41,142.38,45.0]
[1723782399968,0.32964342,142.41,142.4,7.0224]
[1723782400264,0.32964342,142.41,142.4,7.42518178]
[1723782400561,0.32964342,142.41,142.4,7.0224]
[1723782400921,0.32964342,142.41,142.4,7.14789]
[1723782401117,0.32964342,142.41,142.4,52.55033557]
[1723782401553,0.32964342,142.41,142.4,72.14789]
[1723782401725,0.32964342,142.41,142.4,45.25098]
[1723782401943,0.32964342,142.41,142.39,52.0228]
[1723782402143,0.32964342,142.41,142.39,45.0]
[1723782402519,0.32964342,142.41,142.4,7.42525639]
[1723782402764,0.32964342,142.41,142.39,7.0225]
[1723782403564,0.32964342,142.41,142.36,35.8882]
[1723782403565,0.32964342,142.41,142.36,15.8882]
[1723782403724,33.97164342,142.41,142.37,7.0238]
[1723782404635,7.0225,142.4,142.36,15.8882]
[1723782404833,7.0225,142.4,142.35,24.5864]
[1723782406758,0.32964342,142.41,142.36,45.12549]
[1723782407067,0.32964342,142.41,142.38,20.0]
[1723782407766,0.32964342,142.41,142.39,52.14809]
[1723782407969,0.32964342,142.41,142.39,0.12549]
[1723782408174,0.32964342,142.41,142.38,27.0233]
[1723782408474,0.32964342,142.41,142.38,7.0233]
[1723782408891,0.32964342,142.41,142.39,7.0228]
[1723782409174,0.32964342,142.41,142.37,24.5829]
[1723782409534,0.32964342,142.41,142.38,7.0234]
[1723782409728,0.32964342,142.41,142.37,24.5831]
[1723782411353,0.32964342,142.41,142.37,17.5593]
[1723782411780,0.32964342,142.41,142.38,7.0233]
[1723782412164,0.32964342,142.41,142.38,20.0]
[1723782412977,0.32964342,142.41,142.37,24.5831]
[1723782413194,33.97184342,142.41,142.37,17.5593]
[1723782413686,7.0231,142.39,142.34,24.5876]
[1723782413882,7.0238,142.38,142.34,17.5627]
[1723782415388,33.6431,142.39,142.35,7.0248]
[1723782416670,33.6431,142.39,142.34,24.5879]
[1723782416988,33.6431,142.39,142.35,0.12549]
[1723782417679,33.6431,142.39,142.34,24.5879]
[1723782420009,7.0234,142.38,142.34,24.5879]
[1723782420906,7.0234,142.38,142.34,17.5627]
[1723782421505,7.0246,142.36,142.32,23.6679]
[1723782421705,26.62,142.37,142.31,17.5664]
[1723782422009,33.6453,142.35,142.31,17.5664]
[1723782422507,7.0246,142.36,142.31,17.5664]
[1723782423024,7.0246,142.36,142.31,37.5664]
[1723782423596,7.0246,142.36,142.32,0.12549]
[1723782424002,7.0246,142.36,142.32,7.15179]
[1723782424216,7.0241,142.37,142.33,7.0257]
[1723782424534,27.0241,142.37,142.33,7.0257]
[1723782424692,27.0241,142.37,142.32,0.12549]
[1723782424693,27.0241,142.37,142.32,7.15169]
[1723782424895,7.0254,142.35,142.32,0.12549]
[1723782425119,20.0,142.37,142.31,24.5929]
[1723782425120,7.0247,142.36,142.31,24.5929]
[1723782425316,7.0247,142.36,142.32,7.0264]
[1723782428023,7.0247,142.36,142.31,24.5931]
[1723782429654,7.0259,142.33,142.3,0.12549]
[1723782429941,7.0255,142.34,142.29,45.25098]
[1723782430141,7.0255,142.34,142.3,7.0272]
[1723782431527,7.0251,142.35,142.3,7.0272]
[1723782431841,26.62,142.36,142.29,52.27868]
[1723782432022,26.62,142.34,142.29,52.27868]
[1723782433023,33.6455,142.34,142.29,52.27868]
[1723782433834,10.63,142.33,142.29,52.27868]
[1723782434454,10.63,142.33,142.3,7.0273]
[1723782437874,10.63,142.33,142.29,52.27868]
[1723782439257,7.0255,142.34,142.3,7.0273]
[1723782440468,10.63,142.39,142.32,20.0]
[1723782440655,17.6531,142.39,142.34,7.0251]
[1723782441776,7.0235,142.38,142.34,7.0251]
[1723782444669,0.32964342,142.41,142.38,7.023]
[1723782445174,0.32964342,142.41,142.38,7.42671484]
[1723782446155,0.32964342,142.41,142.38,24.98491484]
[1723782446875,0.32964342,142.41,142.38,24.5812]
[1723782448679,0.32964342,142.41,142.38,24.0812]
[1723782449453,0.32964342,142.41,142.39,0.4035111]
[1723782449672,0.32964342,142.41,142.4,7.0224]
[1723782449886,0.32964342,142.41,142.4,7.42531572]
[1723782450354,0.32964342,142.41,142.4,7.0224]
[1723782450690,0.32964342,142.41,142.39,7.0228]
[1723782453483,0.32964342,142.41,142.4,0.12549]
[1723782453797,0.32964342,142.41,142.39,6.64829]
[1723782455672,0.32964342,142.41,142.4,7.0224]
[1723782457784,0.32964342,142.41,142.4,52.14789]
[1723782457982,0.32964342,142.41,142.4,52.67568059]
[1723782459300,0.32964342,142.41,142.4,52.27338]
[1723782460207,0.32964342,142.41,142.4,72.27338]
[1723782460405,0.32964342,142.41,142.4,72.67533142]
[1723782460581,0.32964342,142.41,142.4,88.55872311]
[1723782460778,0.17277554,142.43,142.42,64.5751]
[1723782460997,0.17277554,142.43,142.42,110.22743674]
[1723782461319,0.17277554,142.43,142.42,116.78162674]
[1723782461504,0.17277554,142.43,142.42,116.90711674]
[1723782462077,0.97582375,142.45,142.44,47.0204]
[1723782462307,0.29221163,142.46,142.45,40.32809]
[1723782462507,0.29221163,142.46,142.45,106.10436536]
[1723782463087,0.29221163,142.46,142.45,86.10436536]
[1723782463291,1.12759283,142.49,142.46,47.14499]
[1723782463597,1.12759283,142.49,142.46,92.92125224]
[1723782463827,1.12759283,142.49,142.46,112.92125224]
[1723782464027,1.12759283,142.49,142.46,112.52146]
[1723782464323,1.12759283,142.49,142.47,7.019]
[1723782464527,1.12759283,142.49,142.47,52.9205797]
[1723782464723,1.12759283,142.49,142.47,7.41909137]
[1723782464905,1.12759283,142.49,142.47,7.019]
[1723782465814,1.12759283,142.49,142.46,7.0193]
[1723782466393,1.12759283,142.49,142.47,7.019]
[1723782467427,1.12759283,142.49,142.46,7.0193]
[1723782468712,1.12759283,142.49,142.47,7.019]
[1723782468915,1.12759283,142.49,142.47,52.26998]
[1723782470224,1.12759283,142.49,142.47,7.019]
[1723782471093,1.12759283,142.49,142.47,7.14449]
[1723782471300,1.12759283,142.49,142.47,52.26998]
[1723782472436,1.12759283,142.49,142.45,33.1826]
[1723782472607,1.12759283,142.49,142.47,7.019]
[1723782473002,1.12759283,142.49,142.47,52.26998]
[1723782473404,1.12759283,142.49,142.47,52.019]
[1723782473616,1.12759283,142.49,142.47,7.019]
[1723782474702,1.12759283,142.49,142.46,7.0193]
[1723782475218,8.14569283,142.49,142.45,24.5699]
[1723782476204,7.36846624,142.48,142.44,7.0201]
[1723782476409,33.91846624,142.48,142.43,7.0206]
[1723782476931,33.91846624,142.48,142.44,7.0203]
[1723782479440,7.0194,142.47,142.42,41.0759]
[1723782479660,7.02,142.45,142.39,37.5565]
[1723782479839,8.77562021,142.45,142.4,7.0221]
[1723782480172,7.0203,142.45,142.39,37.5565]
[1723782480389,33.5696,142.46,142.41,7.0219]
[1723782483954,33.5696,142.46,142.39,37.5565]
[1723782483955,33.5696,142.46,142.42,7.0214]
[1723782484154,33.5696,142.46,142.41,7.0218]
[1723782485390,7.02,142.45,142.41,7.0218]
[1723782485791,33.5696,142.46,142.42,7.0214]
[1723782486172,33.5696,142.46,142.42,27.0214]
[1723782486794,26.55,142.46,142.42,27.0214]
[1723782487999,10.61,142.46,142.42,27.0214]
[1723782488502,10.61,142.46,142.42,20.0]
[1723782489159,17.6296,142.46,142.42,27.0214]
[1723782492396,7.02,142.45,142.42,20.0]
[1723782492597,7.02,142.45,142.41,24.5763]
[1723782492784,17.6296,142.46,142.41,24.5763]
[1723782492968,17.6296,142.46,142.42,7.0214]
[1723782493177,17.6296,142.46,142.42,27.0214]
[1723782493797,10.61,142.46,142.43,7.0209]
[1723782494091,10.61,142.46,142.44,7.0204]
[1723782495021,10.61,142.46,142.43,24.5728]
[1723782497082,10.61,142.46,142.44,7.0204]
[1723782497283,10.61,142.46,142.43,24.5728]
[1723782499109,17.6295,142.46,142.43,17.552]
[1723782499321,7.02,142.45,142.41,7.0219]
[1723782500299,10.61,142.44,142.41,7.0219]
[1723782500713,6.59526624,142.48,142.43,7.0209]
[1723782500714,10.61,142.46,142.43,7.0209]
[1723782500927,10.61,142.46,142.42,24.5745]
[1723782501927,17.6296,142.46,142.42,24.5745]
[1723782502541,10.61,142.46,142.42,17.5534]
[1723782502903,17.6295,142.46,142.42,24.5747]
[1723782504534,7.0191,142.47,142.42,24.5747]
[1723782504755,24.22386624,142.48,142.43,7.0208]
[1723782505346,24.22386624,142.48,142.45,7.0199]
[1723782505347,0.34976624,142.48,142.45,7.0199]
[1723782505528,0.34976624,142.48,142.43,20.0]
[1723782505529,0.34976624,142.48,142.44,7.0203]
[1723782506342,0.34976624,142.48,142.45,7.0199]
[1723782506706,0.34976624,142.48,142.46,7.0193]
[1723782506907,0.34976624,142.48,142.46,52.0193]
[1723782507348,0.34976624,142.48,142.47,7.019]
[1723782507522,0.34976624,142.48,142.46,62.5481]
[1723782508653,0.34976624,142.48,142.46,69.5674]
[1723782509321,0.34976624,142.48,142.46,24.5674]
[1723782510752,0.34976624,142.48,142.46,17.5481]
[1723782511064,0.34976624,142.48,142.45,7.0199]
[1723782511260,0.34976624,142.48,142.46,7.0194]
[1723782511969,0.34976624,142.48,142.47,7.019]
[1723782512140,0.34976624,142.48,142.46,7.0193]
[1723782512525,0.34976624,142.48,142.47,7.019]
[1723782514538,0.34976624,142.48,142.47,27.019]
[1723782514757,0.34976624,142.48,142.47,92.26998]
[1723782515048,0.34976624,142.48,142.47,108.13127]
[1723782515245,0.34976624,142.48,142.47,88.13127]
[1723782515451,0.34976624,142.48,142.47,88.00578]
[1723782515648,0.34976624,142.48,142.47,108.00578]
[1723782516336,0.34976624,142.48,142.47,108.25676]
[1723782516738,0.34976624,142.48,142.47,88.13127]
[1723782516944,0.34976624,142.48,142.47,88.00578]
[1723782517474,0.34976624,142.48,142.47,87.88029]
[1723782518343,0.34976624,142.48,142.45,27.0199]
[1723782518664,0.34976624,142.48,142.46,7.0191]
[1723782519851,0.34976624,142.48,142.43,35.9558]
[1723782519852,0.34976624,142.48,142.47,7.019]
[1723782520479,0.34976624,142.48,142.47,52.26998]
[1723782521959,0.34976624,142.48,142.47,108.75135274]
[1723782522168,0.34976624,142.48,142.47,108.87684274]
[1723782523456,0.34976624,142.48,142.47,108.47676]
[1723782526602,0.34976624,142.48,142.47,88.35127]
[1723782526811,0.34976624,142.48,142.47,108.22578]
[1723782529321,0.34976624,142.48,142.47,88.22578]
[1723782529605,0.34976624,142.48,142.47,22.9748]
[1723782531215,0.34976624,142.48,142.47,68.22578]
[1723782532613,10.95976624,142.48,142.43,53.731]
[1723782532793,10.61,142.46,142.44,7.0201]
[1723782533223,10.61,142.46,142.43,24.5725]
[1723782533403,10.95976624,142.48,142.45,17.5496]
[1723782533727,10.95976624,142.48,142.45,24.5694]
[1723782534330,17.97826624,142.48,142.44,7.0203]
[1723782534750,0.34976624,142.48,142.45,72.27078]
[1723782535535,0.34976624,142.48,142.45,52.0198]
[1723782535740,0.34976624,142.48,142.45,7.0198]
[1723782535915,7.36836624,142.48,142.44,24.5712]
[1723782536115,0.34976624,142.48,142.44,24.5712]
[1723782537149,0.34976624,142.48,142.45,0.12549]
[1723782537324,0.34976624,142.48,142.46,7.0195]
[1723782537525,0.34976624,142.48,142.45,7.14529]
[1723782538038,0.34976624,142.48,142.45,7.0198]
[1723782539745,0.34976624,142.48,142.46,52.27018]
[1723782540168,0.34976624,142.48,142.46,7.0192]
[1723782540871,0.34976624,142.48,142.45,7.0198]
[1723782548276,7.36826624,142.48,142.44,24.5711]
[1723782553759,10.95976624,142.48,142.41,37.554]
[1723782553982,10.95976624,142.48,142.42,7.0213]
[1723782553983,17.6298,142.46,142.42,7.0213]
[1723782554683,17.6295,142.46,142.42,7.0214]
[1723782555583,17.6295,142.46,142.42,6.5214]
[1723782556016,10.61,142.46,142.42,6.5214]
[1723782560524,17.6297,142.46,142.42,6.5214]
[1723782561726,0.34976624,142.48,142.44,7.0202]
[1723782561893,0.34976624,142.48,142.43,65.0]
[1723782562089,0.34976624,142.48,142.46,7.0193]
[1723782565634,10.95976624,142.48,142.45,24.5687]
[1723782569841,0.34976624,142.48,142.46,7.0195]
[1723782571444,17.97836624,142.48,142.44,7.27118]
[1723782571651,17.97836624,142.48,142.44,7.0202]
[1723782574527,10.95976624,142.48,142.44,7.0202]
[1723782574720,0.34976624,142.48,142.47,20.0]
[1723782575046,0.34976624,142.48,142.47,27.019]
[1723782578937,0.34976624,142.48,142.47,72.54529069]
[1723782579138,0.34976624,142.48,142.47,72.67078069]
[1723782581316,0.34976624,142.48,142.47,72.26998]
[1723782581520,0.34976624,142.48,142.47,52.26998]
[1723782583731,0.34976624,142.48,142.47,52.67041809]
[1723782584763,0.34976624,142.48,142.47,52.26998]
[1723782584950,0.34976624,142.48,142.47,52.670445]
[1723782585262,0.34976624,142.48,142.47,52.26998]
[1723782586076,0.34976624,142.48,142.47,72.26998]
[1723782586237,0.34976624,142.48,142.47,72.67029946]
[1723782587266,0.34976624,142.48,142.47,72.26998]
[1723782587769,0.34976624,142.48,142.47,52.26998]
[1723782588078,0.34976624,142.48,142.47,72.6703413]
[1723782589744,0.34976624,142.48,142.47,92.6703413]
[1723782590958,0.34976624,142.48,142.47,72.26998]
[1723782591273,0.34976624,142.48,142.47,52.26998]
[1723782594070,0.34976624,142.48,142.47,72.67059734]
[1723782594478,0.34976624,142.48,142.47,92.67059734]
[1723782595770,0.34976624,142.48,142.47,92.39547]
[1723782595968,0.34976624,142.48,142.47,92.26998]
[1723782598549,0.34976624,142.48,142.47,92.39547]
[1723782600270,0.34976624,142.48,142.47,92.26998]
[1723782600863,0.34976624,142.48,142.47,7.019]
[1723782601370,0.34976624,142.48,142.47,27.019]
[1723782602051,0.34976624,142.48,142.47,72.14449]
[1723782602754,0.34976624,142.48,142.47,92.39547]
[1723782604985,0.34976624,142.48,142.47,72.39547]
[1723782606577,0.34976624,142.48,142.47,92.39547]
[1723782607675,0.34976624,142.48,142.47,27.019]
[1723782608787,0.34976624,142.48,142.47,72.14449]
[1723782608985,0.34976624,142.48,142.47,72.26998]
[1723782609385,0.34976624,142.48,142.47,92.39547]
[1723782617384,0.34976624,142.48,142.47,92.26998]
[1723782617668,0.34976624,142.48,142.47,27.019]
[1723782618987,0.34976624,142.48,142.47,72.26998]
[1723782620406,0.34976624,142.48,142.46,44.5676]
[1723782620624,10.61,142.47,142.43,17.5516]
[1723782620900,0.34976624,142.48,142.43,17.5516]
[1723782621106,0.34976624,142.48,142.46,7.0194]
[1723782621587,0.34976624,142.48,142.45,24.569]
[1723782622995,10.95976624,142.48,142.45,24.569]
[1723782626717,10.61,142.46,142.42,37.5532]
[1723782626893,10.61,142.46,142.43,7.0206]
[1723782627286,10.61,142.46,142.44,7.0204]
[1723782627683,0.34976624,142.48,142.46,20.0]
[1723782627994,0.34976624,142.48,142.47,7.019]
[1723782630909,0.34976624,142.48,142.46,17.5478]
[1723782631303,10.95976624,142.48,142.46,17.5478]
[1723782632489,10.95976624,142.48,142.44,7.0204]
[1723782632490,17.97826624,142.48,142.44,7.0204]
[1723782632802,10.61,142.46,142.44,7.0204]
[1723782633532,10.61,142.46,142.4,52.8545]
[1723782633724,10.61,142.46,142.43,7.0205]
[1723782633895,10.95976624,142.48,142.44,7.0201]
[1723782634295,10.95976624,142.48,142.45,7.0198]
[1723782635930,10.95976624,142.48,142.44,24.69669]
[1723782640555,17.97826624,142.48,142.44,24.69669]
[1723782640851,7.0192,142.47,142.43,7.0208]
[1723782641156,10.61,142.46,142.43,7.0208]
[1723782642426,17.6292,142.47,142.43,7.0208]
[1723782644150,17.6292,142.47,142.42,7.0213]
[1723782644543,17.6292,142.47,142.43,7.0209]
[1723782644855,60.07,142.45,142.41,24.5758]
[1723782645032,10.61,142.42,142.41,24.5758]
[1723782645350,10.61,142.42,142.4,7.0224]
[1723782645851,10.61,142.42,142.38,37.5579]
[1723782646067,10.61,142.42,142.38,24.5813]
[1723782646068,10.61,142.4,142.38,24.5813]
[1723782646627,10.61,142.4,142.39,7.0229]
[1723782647964,7.021,142.43,142.39,7.0229]
[1723782648162,10.61,142.41,142.39,7.0229]
[1723782648881,10.61,142.41,142.38,44.5812]
[1723782650254,10.61,142.41,142.38,24.5812]
[1723782650570,10.61,142.41,142.38,17.5579]
[1723782650740,10.61,142.41,142.38,24.581]
[1723782659557,10.61,142.41,142.39,7.0227]
[1723782661002,7.0206,142.44,142.4,7.0224]
[1723782661292,10.95976624,142.48,142.44,20.0]
[1723782661467,10.95976624,142.48,142.45,45.0]
[1723782661890,10.95976624,142.48,142.44,45.4015034]
[1723782662190,10.95976624,142.48,142.45,7.0199]
[1723782663184,10.95976624,142.48,142.44,17.5509]
[1723782663393,10.61,142.46,142.43,7.0208]
[1723782664096,10.61,142.46,142.44,7.0204]
[1723782665476,10.61,142.46,142.42,20.0]
[1723782665687,10.61,142.46,142.43,52.0206]
[1723782666076,10.61,142.46,142.43,7.0206]
[1723782667899,17.6306,142.44,142.4,7.0221]
[1723782668102,10.61,142.41,142.4,7.0221]
[1723782669582,7.36866624,142.48,142.38,20.0]
[1723782669783,0.34976624,142.48,142.45,20.0]
[1723782671029,0.34976624,142.48,142.46,7.0193]
[1723782671232,0.34976624,142.48,142.45,7.0199]
[1723782671535,0.34976624,142.48,142.44,7.0203]
[1723782671536,10.61,142.47,142.44,7.0203]
[1723782672705,10.61,142.45,142.43,7.0208]
[1723782674803,10.61,142.45,142.44,7.0204]
[1723782675002,10.61,142.47,142.44,7.0204]
[1723782675235,10.61,142.47,142.42,17.5527]
[1723782675236,10.61,142.47,142.45,7.0198]
[1723782678499,10.61,142.47,142.44,17.5508]
[1723782678500,10.61,142.47,142.44,24.5711]
[1723782678700,0.12549,142.44,142.37,27.32865515]